{"text_format":"2","workbook":"xlsx","n_sheets":2,"sheets":["Mebel siyahısı (Otaqlar üzrə)","Mebel siyahısı (əsas)  "],"not_rendered":{"charts":0,"images":40,"macros":0,"external_links":0,"defined_names":2,"comments":0,"pivot_tables":0},"unopened":[],"bounds":{"document_bytes":16777216,"sheet_cells":100000,"run_cost":"one","rows_first":2000,"rows_last":500,"rows_between":2000,"halvings":0,"cell_chars":16384,"cell_head_chars":4096},"cells_cut":0,"cells_raw":0,"read":"whole","date_system":"1900"}

{"sheet":"Mebel siyahısı (Otaqlar üzrə)","index":0,"n_rows":303,"n_cols":12,"rows_kept":303,"cut":false,"hidden":false,"merged":[]}
[null,null,"AFFA Gəncə Stadionu"]
["Mərtəbə","Otaq","Məhsulun adı","Görünüşü","Təsviri","H (mm)","E (mm)","D (mm)","Ölçü vahidi","Sayı"]
["I mərtəbə",1,"Qeydiyyat masası",{"$nulls":5},"ədəd",1]
["I mərtəbə",1,"Tumba (1)",null,null,600,500,500,"ədəd",1,null,{"$f":"J4+J12+J29+J91+J110+J296","v":13}]
["I mərtəbə",1,"Fayllar üçün dolab ",null,null,2000,800,400,"ədəd",2,null,{"$f":"J5+J13+J25+J34+J87+J96+J103+J111","v":16}]
["I mərtəbə",1,"Geyim dolabı (1)",null,null,2000,600,400,"ədəd",1,null,{"$f":"J6+J14+J26+J35+J88+J97+J104+J112","v":11}]
["I mərtəbə",1,"Divan",null,null,null,1800,null,"ədəd",3,null,{"$f":"J7+J19+J81+J92+J126+J291","v":11}]
["I mərtəbə",1,"Qəhvə masası (3)",null,null,400,1000,600,"ədəd",2,null,{"$f":"J8+J128+J293","v":7}]
["I mərtəbə",1,"İşçi kreslosu (ofis)",{"$nulls":5},"ədəd",1,null,{"$f":"J9+J10+J27+J89+J108+J113+J294","v":15}]
["I mərtəbə",4,"İşçi kreslosu (ofis)",{"$nulls":5},"ədəd",1]
["I mərtəbə",4,"İşçi masası (ofis)",null,null,750,1600,700,"ədəd",1,null,{"$f":"J11+J28+J90+J109+J114+J295","v":14}]
["I mərtəbə",4,"Tumba (1)",null,null,600,500,500,"ədəd",1]
["I mərtəbə",4,"Fayllar üçün dolab ",null,null,2000,800,400,"ədəd",1]
["I mərtəbə",4,"Geyim dolabı (1)",null,null,2000,600,400,"ədəd",1]
["I mərtəbə",4,"Stul (ofis)",{"$nulls":5},"ədəd",5,null,{"$f":"J15+J22+J36+J84+J95+J130+J192","v":45}]
["I mərtəbə",5,"Müdir kreslosu (ofis)",{"$nulls":5},"ədəd",1,null,{"$f":"J16+J78+J98+J105","v":7}]
["I mərtəbə",5,"Müdir masası (ofis)",null,null,750,1800,800,"ədəd",1,null,{"$f":"J17+J79+J99+J106","v":7}]
["I mərtəbə",5,"Müdir masası üçün əlavə dolab (ofis)",null,null,750,900,450,"ədəd",1,null,{"$f":"J18+J80+J100+J107","v":7}]
["I mərtəbə",5,"Divan",null,null,null,1800,null,"ədəd",1]
["I mərtəbə",5,"Qəhvə masası (2)",null,null,400,800,500,"ədəd",1,null,{"$f":"J20+J82+J93","v":3}]
["I mərtəbə",5,"İclas masası (1)",null,null,750,1600,800,"ədəd",1,null,{"$f":"J21+J83+J94","v":3}]
["I mərtəbə",5,"Stul (ofis)",{"$nulls":5},"ədəd",6]
["I mərtəbə",5,"Stul (qonaqlar üçün)",{"$nulls":5},"ədəd",2,null,{"$f":"J23+J30+J85+J101","v":8}]
["I mərtəbə",5,"Qəhvə masası (1)",null,null,320,450,450,"ədəd",1,null,{"$f":"J24+J31+J86+J102","v":4}]
["I mərtəbə",5,"Fayllar üçün dolab ",null,null,2000,800,400,"ədəd",2]
["I mərtəbə",5,"Geyim dolabı (1)",null,null,2000,600,400,"ədəd",1]
["I mərtəbə",7,"İşçi kreslosu (ofis)",{"$nulls":5},"ədəd",1]
["I mərtəbə",7,"İşçi masası (ofis)",null,null,750,1600,700,"ədəd",1]
["I mərtəbə",7,"Tumba (1)",null,null,600,500,500,"ədəd",1]
["I mərtəbə",7,"Stul (qonaqlar üçün)",{"$nulls":5},"ədəd",2]
["I mərtəbə",7,"Qəhvə masası (1)",null,null,320,450,450,"ədəd",1]
["I mərtəbə",7,"Müayinə masası",{"$nulls":5},"ədəd",1,null,{"$f":"J32","v":1}]
["I mərtəbə",7,"Tibbi ləvazimatlar üçün dolab",{"$nulls":5},"ədəd",2,null,{"$f":"J33","v":2}]
["I mərtəbə",7,"Fayllar üçün dolab ",null,null,2000,800,400,"ədəd",1]
["I mərtəbə",7,"Geyim dolabı (1)",null,null,2000,600,400,"ədəd",1]
["I mərtəbə",7,"Stul (ofis)",{"$nulls":5},"ədəd",2]
["I mərtəbə",7,"Müayinə üçün arakəsmə",{"$nulls":5},"ədəd",1,null,{"$f":"J37","v":1}]
["I mərtəbə",8,"Geyim dolabı (2)",null,null,2000,400,600,"ədəd",3,null,{"$f":"J38+J46+J54+J62+J70+J118+J121+J135+J144+J152+J160+J168+J176+J184+J188+J197+J201+J209+J217+J225+J233+J241+J249+J257+J265+J273+J282","v":113}]
["I mərtəbə",8,"Divar güzgüsü",null,null,1800,800,null,"ədəd",1,null,{"$f":"J39+J47+J55+J63+J71+J119+J122+J136+J145+J153+J161+J169+J177+J185+J190+J198+J202+J210+J218+J226+J234+J242+J250+J258+J266+J274+J283","v":27}]
["I mərtəbə",8,"Yazı masası (yataq otağı)",null,null,750,1200,600,"ədəd",1,null,{"$f":"J40+J48+J56+J64+J72+J137+J146+J154+J162+J170+J178+J186+J199+J203+J211+J219+J227+J235+J243+J251+J259+J267+J275+J284","v":24}]
["I mərtəbə",8,"Stul (yataq otağı)",{"$nulls":5},"ədəd",1,null,{"$f":"J41+J49+J57+J65+J73+J138+J147+J155+J163+J171+J179+J187+J200+J204+J212+J220+J236+J228+J244+J252+J260+J268+J276+J285","v":24}]
["I mərtəbə",8,"Çarpayı",{"$nulls":5},"ədəd",3,null,{"$f":"J42+J50+J58+J66+J74+J205+J213+J221+J229+J237+J245+J253+J261+J269+J277+J286","v":44}]
["I mərtəbə",8,"Döşək",null,null,null,900,2000,"ədəd",3,null,{"$f":"J43+J51+J59+J67+J75+J132+J141+J149+J157+J165+J173+J181+J194+J206+J214+J222+J230+J238+J246+J254+J262+J270+J278+J287","v":96}]
["I mərtəbə",8,"Tumba (2)",null,null,500,500,500,"ədəd",3,null,{"$f":"J44+J52+J60+J68+J76+J133+J142+J150+J158+J166+J174+J182+J195+J207+J215+J223+J231+J239+J247+J255+J263+J271+J279+J288","v":76}]
["I mərtəbə",8,"Lampa",{"$nulls":5},"ədəd",3,null,{"$f":"J45+J53+J61+J69+J77+J134+J143+J151+J159+J167+J175+J183+J196+J208+J216+J224+J232+J240+J248+J256+J264+J272+J280+J289","v":76}]
["I mərtəbə",9,"Geyim dolabı (2)",null,null,2000,400,600,"ədəd",3]
["I mərtəbə",9,"Divar güzgüsü",null,null,1800,800,null,"ədəd",1]
["I mərtəbə",9,"Yazı masası (yataq otağı)",null,null,750,1200,600,"ədəd",1]
["I mərtəbə",9,"Stul (yataq otağı)",{"$nulls":5},"ədəd",1]
["I mərtəbə",9,"Çarpayı",{"$nulls":5},"ədəd",3]
["I mərtəbə",9,"Döşək",null,null,null,900,2000,"ədəd",3]
["I mərtəbə",9,"Tumba (2)",null,null,500,500,500,"ədəd",3]
["I mərtəbə",9,"Lampa",{"$nulls":5},"ədəd",3]
["I mərtəbə",10,"Geyim dolabı (2)",null,null,2000,400,600,"ədəd",3]
["I mərtəbə",10,"Divar güzgüsü",null,null,1800,800,null,"ədəd",1]
["I mərtəbə",10,"Yazı masası (yataq otağı)",null,null,750,1200,600,"ədəd",1]
["I mərtəbə",10,"Stul (yataq otağı)",{"$nulls":5},"ədəd",1]
["I mərtəbə",10,"Çarpayı",{"$nulls":5},"ədəd",3]
["I mərtəbə",10,"Döşək",null,null,null,900,2000,"ədəd",3]
["I mərtəbə",10,"Tumba (2)",null,null,500,500,500,"ədəd",3]
["I mərtəbə",10,"Lampa",{"$nulls":5},"ədəd",3]
["I mərtəbə",11,"Geyim dolabı (2)",null,null,2000,400,600,"ədəd",3]
["I mərtəbə",11,"Divar güzgüsü",null,null,1800,800,null,"ədəd",1]
["I mərtəbə",11,"Yazı masası (yataq otağı)",null,null,750,1200,600,"ədəd",1]
["I mərtəbə",11,"Stul (yataq otağı)",{"$nulls":5},"ədəd",1]
["I mərtəbə",11,"Çarpayı",{"$nulls":5},"ədəd",3]
["I mərtəbə",11,"Döşək",null,null,null,900,2000,"ədəd",3]
["I mərtəbə",11,"Tumba (2)",null,null,500,500,500,"ədəd",3]
["I mərtəbə",11,"Lampa",{"$nulls":5},"ədəd",3]
["I mərtəbə",12,"Geyim dolabı (2)",null,null,2000,400,600,"ədəd",3]
["I mərtəbə",12,"Divar güzgüsü",null,null,1800,800,null,"ədəd",1]
["I mərtəbə",12,"Yazı masası (yataq otağı)",null,null,750,1200,600,"ədəd",1]
["I mərtəbə",12,"Stul (yataq otağı)",{"$nulls":5},"ədəd",1]
["I mərtəbə",12,"Çarpayı",{"$nulls":5},"ədəd",3]
["I mərtəbə",12,"Döşək",null,null,null,900,2000,"ədəd",3]
["I mərtəbə",12,"Tumba (2)",null,null,500,500,500,"ədəd",3]
["I mərtəbə",12,"Lampa",{"$nulls":5},"ədəd",3]
["I mərtəbə",14,"Müdir kreslosu (ofis)",{"$nulls":5},"ədəd",1]
["I mərtəbə",14,"Müdir masası (ofis)",null,null,750,1800,800,"ədəd",1]
["I mərtəbə",14,"Müdir masası üçün əlavə dolab (ofis)",null,null,750,900,450,"ədəd",1]
["I mərtəbə",14,"Divan",null,null,null,1800,null,"ədəd",1]
["I mərtəbə",14,"Qəhvə masası (2)",null,null,400,800,500,"ədəd",1]
["I mərtəbə",14,"İclas masası (1)",null,null,750,1600,800,"ədəd",1]
["I mərtəbə",14,"Stul (ofis)",{"$nulls":5},"ədəd",6]
["I mərtəbə",14,"Stul (qonaqlar üçün)",{"$nulls":5},"ədəd",2]
["I mərtəbə",14,"Qəhvə masası (1)",null,null,320,450,450,"ədəd",1]
["I mərtəbə",14,"Fayllar üçün dolab ",null,null,2000,800,400,"ədəd",1]
["I mərtəbə",14,"Geyim dolabı (1)",null,null,2000,600,400,"ədəd",1]
["I mərtəbə",15,"İşçi kreslosu (ofis)",{"$nulls":5},"ədəd",1]
["I mərtəbə",15,"İşçi masası (ofis)",null,null,750,1600,700,"ədəd",1]
["I mərtəbə",15,"Tumba (1)",null,null,600,500,500,"ədəd",1]
["I mərtəbə",15,"Divan",null,null,null,1800,null,"ədəd",1]
["I mərtəbə",15,"Qəhvə masası (2)",null,null,400,800,500,"ədəd",1]
["I mərtəbə",15,"İclas masası (1)",null,null,750,1600,800,"ədəd",1]
["I mərtəbə",15,"Stul (ofis)",{"$nulls":5},"ədəd",6]
["I mərtəbə",15,"Fayllar üçün dolab ",null,null,2000,800,400,"ədəd",1]
["I mərtəbə",15,"Geyim dolabı (1)",null,null,2000,600,400,"ədəd",1]
["I mərtəbə",16,"Müdir kreslosu (ofis)",{"$nulls":5},"ədəd",1]
["I mərtəbə",16,"Müdir masası (ofis)",null,null,750,1800,800,"ədəd",1]
["I mərtəbə",16,"Müdir masası üçün əlavə dolab (ofis)",null,null,750,900,450,"ədəd",1]
["I mərtəbə",16,"Stul (qonaqlar üçün)",{"$nulls":5},"ədəd",2]
["I mərtəbə",16,"Qəhvə masası (1)",null,null,320,450,450,"ədəd",1]
["I mərtəbə",16,"Fayllar üçün dolab ",null,null,2000,800,400,"ədəd",2]
["I mərtəbə",16,"Geyim dolabı (1)",null,null,2000,600,400,"ədəd",1]
["I mərtəbə",17,"Müdir kreslosu (ofis)",{"$nulls":5},"ədəd",4]
["I mərtəbə",17,"Müdir masası (ofis)",null,null,750,1800,800,"ədəd",4]
["I mərtəbə",17,"Müdir masası üçün əlavə dolab (ofis)",null,null,750,900,450,"ədəd",4]
["I mərtəbə",17,"İşçi kreslosu (ofis)",{"$nulls":5},"ədəd",8]
["I mərtəbə",17,"İşçi masası (ofis)",null,null,750,1600,700,"ədəd",8]
["I mərtəbə",17,"Tumba (1)",null,null,600,500,500,"ədəd",8]
["I mərtəbə",17,"Fayllar üçün dolab ",null,null,2000,800,400,"ədəd",6]
["I mərtəbə",17,"Geyim dolabı (1)",null,null,2000,600,400,"ədəd",4]
["I mərtəbə",18,"İşçi kreslosu (ofis)",{"$nulls":5},"ədəd",2]
["I mərtəbə",18,"İşçi masası (ofis)",null,null,750,1600,700,"ədəd",2]
["I mərtəbə",18,"Stul (konfrans zalı üçün)",{"$nulls":5},"ədəd",64,null,{"$f":"J115","v":64}]
["I mərtəbə",19,"Masa (yeməkxana üçün)",{"$nulls":5},"ədəd",18,null,{"$f":"J116","v":18}]
["I mərtəbə",19,"Stul (yeməkxana üçün)",{"$nulls":5},"ədəd",72,null,{"$f":"J117","v":72}]
["I mərtəbə",22,"Geyim dolabı (2)",null,null,2000,400,600,"ədəd",4]
["I mərtəbə",22,"Divar güzgüsü",null,null,1800,800,null,"ədəd",1]
["I mərtəbə",22,"Skamya",null,null,450,1400,500,"ədəd",1,null,{"$f":"J120+J123","v":2}]
["I mərtəbə",23,"Geyim dolabı (2)",null,null,2000,400,600,"ədəd",4]
["I mərtəbə",23,"Divar güzgüsü",null,null,1800,800,null,"ədəd",1]
["I mərtəbə",23,"Skamya",null,null,450,1400,500,"ədəd",1]
["II mərtəbə",2,"Divar dolabı (sağ tərəf)",{"$nulls":5},"ədəd",1,null,{"$f":"J124","v":1}]
["II mərtəbə",2,"Divar dolabı (sol tərəf)",{"$nulls":5},"ədəd",1,null,{"$f":"J125","v":1}]
["II mərtəbə",2,"Divan",null,null,null,1800,null,"ədəd",3]
["II mərtəbə",2,"Kreslo",null,null,null,1000,null,"ədəd",2,null,{"$f":"J127+J292","v":4}]
["II mərtəbə",2,"Qəhvə masası (3)",null,null,400,1000,600,"ədəd",3]
["II mərtəbə",2,"İclas masası (2)",null,null,750,3500,1400,"ədəd",1,null,{"$f":"J129","v":1}]
["II mərtəbə",2,"Stul (ofis)",{"$nulls":5},"ədəd",12]
["II mərtəbə",4,"İki mərtəbəli çarpayı",{"$nulls":5},"ədəd",3,null,{"$f":"J131+J140+J148+J156+J164+J172+J180+J193","v":26}]
["II mərtəbə",4,"Döşək",null,null,null,900,2000,"ədəd",6]
["II mərtəbə",4,"Tumba (2)",null,null,500,500,500,"ədəd",4]
["II mərtəbə",4,"Lampa",{"$nulls":5},"ədəd",4]
["II mərtəbə",4,"Geyim dolabı (2)",null,null,2000,400,600,"ədəd",6]
["II mərtəbə",4,"Divar güzgüsü",null,null,1800,800,null,"ədəd",1]
["II mərtəbə",4,"Yazı masası (yataq otağı)",null,null,750,1200,600,"ədəd",1]
["II mərtəbə",4,"Stul (yataq otağı)",{"$nulls":5},"ədəd",1]
["II mərtəbə",6,"Soyunma-geyinmə modulu",null,null,2200,600,600,"ədəd",14,null,{"$f":"J139+J297+J298+J299+J303","v":93}]
["II mərtəbə",7,"İki mərtəbəli çarpayı",{"$nulls":5},"ədəd",3]
["II mərtəbə",7,"Döşək",null,null,null,900,2000,"ədəd",6]
["II mərtəbə",7,"Tumba (2)",null,null,500,500,500,"ədəd",4]
["II mərtəbə",7,"Lampa",{"$nulls":5},"ədəd",4]
["II mərtəbə",7,"Geyim dolabı (2)",null,null,2000,400,600,"ədəd",6]
["II mərtəbə",7,"Divar güzgüsü",null,null,1800,800,null,"ədəd",1]
["II mərtəbə",7,"Yazı masası (yataq otağı)",null,null,750,1200,600,"ədəd",1]
["II mərtəbə",7,"Stul (yataq otağı)",{"$nulls":5},"ədəd",1]
["II mərtəbə",8,"İki mərtəbəli çarpayı",{"$nulls":5},"ədəd",3]
["II mərtəbə",8,"Döşək",null,null,null,900,2000,"ədəd",6]
["II mərtəbə",8,"Tumba (2)",null,null,500,500,500,"ədəd",3]
["II mərtəbə",8,"Lampa",{"$nulls":5},"ədəd",3]
["II mərtəbə",8,"Geyim dolabı (2)",null,null,2000,400,600,"ədəd",6]
["II mərtəbə",8,"Divar güzgüsü",null,null,1800,800,null,"ədəd",1]
["II mərtəbə",8,"Yazı masası (yataq otağı)",null,null,750,1200,600,"ədəd",1]
["II mərtəbə",8,"Stul (yataq otağı)",{"$nulls":5},"ədəd",1]
["II mərtəbə",9,"İki mərtəbəli çarpayı",{"$nulls":5},"ədəd",3]
["II mərtəbə",9,"Döşək",null,null,null,900,2000,"ədəd",6]
["II mərtəbə",9,"Tumba (2)",null,null,500,500,500,"ədəd",4]
["II mərtəbə",9,"Lampa",{"$nulls":5},"ədəd",4]
["II mərtəbə",9,"Geyim dolabı (2)",null,null,2000,400,600,"ədəd",6]
["II mərtəbə",9,"Divar güzgüsü",null,null,1800,800,null,"ədəd",1]
["II mərtəbə",9,"Yazı masası (yataq otağı)",null,null,750,1200,600,"ədəd",1]
["II mərtəbə",9,"Stul (yataq otağı)",{"$nulls":5},"ədəd",1]
["II mərtəbə",10,"İki mərtəbəli çarpayı",{"$nulls":5},"ədəd",3]
["II mərtəbə",10,"Döşək",null,null,null,900,2000,"ədəd",6]
["II mərtəbə",10,"Tumba (2)",null,null,500,500,500,"ədəd",4]
["II mərtəbə",10,"Lampa",{"$nulls":5},"ədəd",4]
["II mərtəbə",10,"Geyim dolabı (2)",null,null,2000,400,600,"ədəd",6]
["II mərtəbə",10,"Divar güzgüsü",null,null,1800,800,null,"ədəd",1]
["II mərtəbə",10,"Yazı masası (yataq otağı)",null,null,750,1200,600,"ədəd",1]
["II mərtəbə",10,"Stul (yataq otağı)",{"$nulls":5},"ədəd",1]
["II mərtəbə",11,"İki mərtəbəli çarpayı",{"$nulls":5},"ədəd",3]
["II mərtəbə",11,"Döşək",null,null,null,900,2000,"ədəd",6]
["II mərtəbə",11,"Tumba (2)",null,null,500,500,500,"ədəd",3]
["II mərtəbə",11,"Lampa",{"$nulls":5},"ədəd",3]
["II mərtəbə",11,"Geyim dolabı (2)",null,null,2000,400,600,"ədəd",6]
["II mərtəbə",11,"Divar güzgüsü",null,null,1800,800,null,"ədəd",1]
["II mərtəbə",11,"Yazı masası (yataq otağı)",null,null,750,1200,600,"ədəd",1]
["II mərtəbə",11,"Stul (yataq otağı)",{"$nulls":5},"ədəd",1]
["II mərtəbə",12,"İki mərtəbəli çarpayı",{"$nulls":5},"ədəd",3]
["II mərtəbə",12,"Döşək",null,null,null,900,2000,"ədəd",6]
["II mərtəbə",12,"Tumba (2)",null,null,500,500,500,"ədəd",4]
["II mərtəbə",12,"Lampa",{"$nulls":5},"ədəd",4]
["II mərtəbə",12,"Geyim dolabı (2)",null,null,2000,400,600,"ədəd",6]
["II mərtəbə",12,"Divar güzgüsü",null,null,1800,800,null,"ədəd",1]
["II mərtəbə",12,"Yazı masası (yataq otağı)",null,null,750,1200,600,"ədəd",1]
["II mərtəbə",12,"Stul (yataq otağı)",{"$nulls":5},"ədəd",1]
["II mərtəbə",13,"Geyim dolabı (2)",null,null,2000,400,600,"ədəd",7]
["II mərtəbə",13,"Dolab ",null,null,2000,800,600,"ədəd",9,null,{"$f":"J189+J300+J301","v":25}]
["II mərtəbə",13,"Divar güzgüsü",null,null,1800,800,null,"ədəd",1]
["II mərtəbə",13,"Dairəvi masa",null,null,750,1600,1600,"ədəd",1,null,{"$f":"J191","v":1}]
["II mərtəbə",13,"Stul (ofis)",{"$nulls":5},"ədəd",8]
["II mərtəbə",15,"İki mərtəbəli çarpayı",{"$nulls":5},"ədəd",5]
["II mərtəbə",15,"Döşək",null,null,null,900,2000,"ədəd",10]
["II mərtəbə",15,"Tumba (2)",null,null,500,500,500,"ədəd",6]
["II mərtəbə",15,"Lampa",{"$nulls":5},"ədəd",6]
["II mərtəbə",15,"Geyim dolabı (2)",null,null,2000,400,600,"ədəd",10]
["II mərtəbə",15,"Divar güzgüsü",null,null,1800,800,null,"ədəd",1]
["II mərtəbə",15,"Yazı masası (yataq otağı)",null,null,750,1200,600,"ədəd",1]
["II mərtəbə",15,"Stul (yataq otağı)",{"$nulls":5},"ədəd",1]
["II mərtəbə",16,"Geyim dolabı (2)",null,null,2000,400,600,"ədəd",3]
["II mərtəbə",16,"Divar güzgüsü",null,null,1800,800,null,"ədəd",1]
["II mərtəbə",16,"Yazı masası (yataq otağı)",null,null,750,1200,600,"ədəd",1]
["II mərtəbə",16,"Stul (yataq otağı)",{"$nulls":5},"ədəd",1]
["II mərtəbə",16,"Çarpayı",{"$nulls":5},"ədəd",3]
["II mərtəbə",16,"Döşək",null,null,null,900,2000,"ədəd",3]
["II mərtəbə",16,"Tumba (2)",null,null,500,500,500,"ədəd",3]
["II mərtəbə",16,"Lampa",{"$nulls":5},"ədəd",3]
["II mərtəbə",17,"Geyim dolabı (2)",null,null,2000,400,600,"ədəd",3]
["II mərtəbə",17,"Divar güzgüsü",null,null,1800,800,null,"ədəd",1]
["II mərtəbə",17,"Yazı masası (yataq otağı)",null,null,750,1200,600,"ədəd",1]
["II mərtəbə",17,"Stul (yataq otağı)",{"$nulls":5},"ədəd",1]
["II mərtəbə",17,"Çarpayı",{"$nulls":5},"ədəd",3]
["II mərtəbə",17,"Döşək",null,null,null,900,2000,"ədəd",3]
["II mərtəbə",17,"Tumba (2)",null,null,500,500,500,"ədəd",3]
["II mərtəbə",17,"Lampa",{"$nulls":5},"ədəd",3]
["II mərtəbə",18,"Geyim dolabı (2)",null,null,2000,400,600,"ədəd",3]
["II mərtəbə",18,"Divar güzgüsü",null,null,1800,800,null,"ədəd",1]
["II mərtəbə",18,"Yazı masası (yataq otağı)",null,null,750,1200,600,"ədəd",1]
["II mərtəbə",18,"Stul (yataq otağı)",{"$nulls":5},"ədəd",1]
["II mərtəbə",18,"Çarpayı",{"$nulls":5},"ədəd",3]
["II mərtəbə",18,"Döşək",null,null,null,900,2000,"ədəd",3]
["II mərtəbə",18,"Tumba (2)",null,null,500,500,500,"ədəd",3]
["II mərtəbə",18,"Lampa",{"$nulls":5},"ədəd",3]
["II mərtəbə",19,"Geyim dolabı (2)",null,null,2000,400,600,"ədəd",4]
["II mərtəbə",19,"Divar güzgüsü",null,null,1800,800,null,"ədəd",1]
["II mərtəbə",19,"Yazı masası (yataq otağı)",null,null,750,1200,600,"ədəd",1]
["II mərtəbə",19,"Stul (yataq otağı)",{"$nulls":5},"ədəd",1]
["II mərtəbə",19,"Çarpayı",{"$nulls":5},"ədəd",4]
["II mərtəbə",19,"Döşək",null,null,null,900,2000,"ədəd",4]
["II mərtəbə",19,"Tumba (2)",null,null,500,500,500,"ədəd",4]
["II mərtəbə",19,"Lampa",{"$nulls":5},"ədəd",4]
["II mərtəbə",20,"Geyim dolabı (2)",null,null,2000,400,600,"ədəd",3]
["II mərtəbə",20,"Divar güzgüsü",null,null,1800,800,null,"ədəd",1]
["II mərtəbə",20,"Yazı masası (yataq otağı)",null,null,750,1200,600,"ədəd",1]
["II mərtəbə",20,"Stul (yataq otağı)",{"$nulls":5},"ədəd",1]
["II mərtəbə",20,"Çarpayı",{"$nulls":5},"ədəd",3]
["II mərtəbə",20,"Döşək",null,null,null,900,2000,"ədəd",3]
["II mərtəbə",20,"Tumba (2)",null,null,500,500,500,"ədəd",3]
["II mərtəbə",20,"Lampa",{"$nulls":5},"ədəd",3]
["II mərtəbə",21,"Geyim dolabı (2)",null,null,2000,400,600,"ədəd",2]
["II mərtəbə",21,"Divar güzgüsü",null,null,1800,800,null,"ədəd",1]
["II mərtəbə",21,"Yazı masası (yataq otağı)",null,null,750,1200,600,"ədəd",1]
["II mərtəbə",21,"Stul (yataq otağı)",{"$nulls":5},"ədəd",1]
["II mərtəbə",21,"Çarpayı",{"$nulls":5},"ədəd",1]
["II mərtəbə",21,"Döşək",null,null,null,900,2000,"ədəd",1]
["II mərtəbə",21,"Tumba (2)",null,null,500,500,500,"ədəd",1]
["II mərtəbə",21,"Lampa",{"$nulls":5},"ədəd",1]
["II mərtəbə",22,"Geyim dolabı (2)",null,null,2000,400,600,"ədəd",3]
["II mərtəbə",22,"Divar güzgüsü",null,null,1800,800,null,"ədəd",1]
["II mərtəbə",22,"Yazı masası (yataq otağı)",null,null,750,1200,600,"ədəd",1]
["II mərtəbə",22,"Stul (yataq otağı)",{"$nulls":5},"ədəd",1]
["II mərtəbə",22,"Çarpayı",{"$nulls":5},"ədəd",3]
["II mərtəbə",22,"Döşək",null,null,null,900,2000,"ədəd",3]
["II mərtəbə",22,"Tumba (2)",null,null,500,500,500,"ədəd",3]
["II mərtəbə",22,"Lampa",{"$nulls":5},"ədəd",3]
["II mərtəbə",23,"Geyim dolabı (2)",null,null,2000,400,600,"ədəd",1]
["II mərtəbə",23,"Divar güzgüsü",null,null,1800,800,null,"ədəd",1]
["II mərtəbə",23,"Yazı masası (yataq otağı)",null,null,750,1200,600,"ədəd",1]
["II mərtəbə",23,"Stul (yataq otağı)",{"$nulls":5},"ədəd",1]
["II mərtəbə",23,"Çarpayı",{"$nulls":5},"ədəd",1]
["II mərtəbə",23,"Döşək",null,null,null,900,2000,"ədəd",1]
["II mərtəbə",23,"Tumba (2)",null,null,500,500,500,"ədəd",1]
["II mərtəbə",23,"Lampa",{"$nulls":5},"ədəd",1]
["II mərtəbə",24,"Geyim dolabı (2)",null,null,2000,400,600,"ədəd",3]
["II mərtəbə",24,"Divar güzgüsü",null,null,1800,800,null,"ədəd",1]
["II mərtəbə",24,"Yazı masası (yataq otağı)",null,null,750,1200,600,"ədəd",1]
["II mərtəbə",24,"Stul (yataq otağı)",{"$nulls":5},"ədəd",1]
["II mərtəbə",24,"Çarpayı",{"$nulls":5},"ədəd",3]
["II mərtəbə",24,"Döşək",null,null,null,900,2000,"ədəd",3]
["II mərtəbə",24,"Tumba (2)",null,null,500,500,500,"ədəd",3]
["II mərtəbə",24,"Lampa",{"$nulls":5},"ədəd",3]
["II mərtəbə",25,"Geyim dolabı (2)",null,null,2000,400,600,"ədəd",3]
["II mərtəbə",25,"Divar güzgüsü",null,null,1800,800,null,"ədəd",1]
["II mərtəbə",25,"Yazı masası (yataq otağı)",null,null,750,1200,600,"ədəd",1]
["II mərtəbə",25,"Stul (yataq otağı)",{"$nulls":5},"ədəd",1]
["II mərtəbə",25,"Çarpayı",{"$nulls":5},"ədəd",2]
["II mərtəbə",25,"Döşək",null,null,null,900,2000,"ədəd",2]
["II mərtəbə",25,"Tumba (2)",null,null,500,500,500,"ədəd",2]
["II mərtəbə",25,"Lampa",{"$nulls":5},"ədəd",2]
["II mərtəbə",25,"TV altı tumba",null,null,750,1200,600,"ədəd",1,null,{"$f":"J281","v":1}]
["II mərtəbə",26,"Geyim dolabı (2)",null,null,2000,400,600,"ədəd",3]
["II mərtəbə",26,"Divar güzgüsü",null,null,1800,800,null,"ədəd",1]
["II mərtəbə",26,"Yazı masası (yataq otağı)",null,null,750,1200,600,"ədəd",1]
["II mərtəbə",26,"Stul (yataq otağı)",{"$nulls":5},"ədəd",1]
["II mərtəbə",26,"Çarpayı",{"$nulls":5},"ədəd",3]
["II mərtəbə",26,"Döşək",null,null,null,900,2000,"ədəd",3]
["II mərtəbə",26,"Tumba (2)",null,null,500,500,500,"ədəd",3]
["II mərtəbə",26,"Lampa",{"$nulls":5},"ədəd",3]
["II mərtəbə",27,"Divar dolabı (TV zona)",{"$nulls":5},"ədəd",1,null,{"$f":"J290","v":1}]
["II mərtəbə",27,"Divan",null,null,null,1800,null,"ədəd",2]
["II mərtəbə",27,"Kreslo",null,null,null,1000,null,"ədəd",2]
["II mərtəbə",27,"Qəhvə masası (3)",null,null,400,1000,600,"ədəd",2]
["Zirzəmi",2,"İşçi kreslosu (ofis)",{"$nulls":5},"ədəd",1]
["Zirzəmi",2,"İşçi masası (ofis)",null,null,750,1600,700,"ədəd",1]
["Zirzəmi",2,"Tumba (1)",null,null,600,500,500,"ədəd",1]
["Zirzəmi",2,"Soyunma-geyinmə modulu",null,null,2200,600,600,"ədəd",7]
["Zirzəmi",4,"Soyunma-geyinmə modulu",null,null,2200,600,600,"ədəd",25]
["Zirzəmi",5,"Soyunma-geyinmə modulu",null,null,2200,600,600,"ədəd",25]
["Zirzəmi",11,"Dolab",null,null,2000,800,600,"ədəd",10]
["Zirzəmi",12,"Dolab",null,null,2000,800,600,"ədəd",6]
["Zirzəmi",14,"Anbar stellajı",null,null,2500,800,600,"ədəd",12,null,{"$f":"J302","v":12}]
["Zirzəmi",15,"Soyunma-geyinmə modulu",null,null,2200,600,600,"ədəd",22]

{"sheet":"Mebel siyahısı (əsas)  ","index":1,"n_rows":46,"n_cols":12,"rows_kept":46,"cut":false,"hidden":false,"merged":[[44,0,44,3],[45,0,45,3]]}
[null,null,"AFFA Gəncə Stadionu"]
["Mərtəbə","Otaq","Məhsulun adı","Görünüşü","Təsviri","H (mm)","E (mm)","D (mm)","Ölçü vahidi","Sayı","Qiyməti (AZN)","Ümumi məbləğ (AZN)"]
["Zirzəmi",14,"Anbar stellajı",null,"50*50 mm metal profil, rəflər 18 mm LDSP ",2500,800,600,"ədəd",{"$f":"'Mebel siyahısı (Otaqlar üzrə)'!L302","v":12}]
[null,null,"Çarpayı",null,"Parça örtüklü baza və başlıq",null,null,null,"ədəd",{"$f":"'Mebel siyahısı (Otaqlar üzrə)'!L42","v":44}]
["II mərtəbə",13,"Dairəvi masa",null,"Masa üstü və ayaqlar 18 mm LDSP",750,1600,1600,"ədəd",{"$f":"'Mebel siyahısı (Otaqlar üzrə)'!L191","v":1}]
[null,null,"Divan",null,"Parça örtüklü; metal ayaqlar",null,1800,null,"ədəd",{"$f":"'Mebel siyahısı (Otaqlar üzrə)'!L7","v":11}]
["II mərtəbə",2,"Divar dolabı (sağ tərəf)",null,"Korpus və qapaqlar 18 mm LDSP; arxalıq açıq hissələrdə 18 mm LDSP, qapalı hissələrdə 3 mm DVP; tutacaqlar metal",null,null,null,"ədəd",{"$f":"'Mebel siyahısı (Otaqlar üzrə)'!L124","v":1}]
["II mərtəbə",2,"Divar dolabı (sol tərəf)",null,"Korpus və qapaqlar 18 mm LDSP; arxalıq açıq hissələrdə 18 mm LDSP, qapalı hissələrdə 3 mm DVP; tutacaqlar metal",null,null,null,"ədəd",{"$f":"'Mebel siyahısı (Otaqlar üzrə)'!L125","v":1}]
["II mərtəbə",27,"Divar dolabı (TV zona)",null,"Korpus və qapaqlar 18 mm LDSP; arxalıq açıq hissələrdə 18 mm LDSP, qapalı hissələrdə 3 mm DVP; tutacaqlar metal",null,null,null,"ədəd",{"$f":"'Mebel siyahısı (Otaqlar üzrə)'!L290","v":1}]
[null,null,"Divar güzgüsü",null,"18 mm LDSP çərçivə və 4 mm kənarı radajlı güzgü",1800,800,null,"ədəd",{"$f":"'Mebel siyahısı (Otaqlar üzrə)'!L39","v":27}]
[null,null,"Dolab ",null,"Korpus və qapaqlar 18 mm LDSP; arxalıq 3 mm DVP; tutacaqlar metal; tənzimlənə bilən ayaqlar",2000,800,600,"ədəd",{"$f":"'Mebel siyahısı (Otaqlar üzrə)'!L189","v":25}]
[null,null,"Döşək",null,null,null,900,2000,"ədəd",{"$f":"'Mebel siyahısı (Otaqlar üzrə)'!L43","v":96}]
[null,null,"Fayllar üçün dolab ",null,"Korpus və alt qapaqlar 18 mm LDSP; yuxarı qapaqlar şüşə; arxalıq şüşəli hissədə 18 mm LDSP, qapalı hissələrdə 3 mm DVP; tutacaqlar metal; tənzimlənə bilən ayaqlar",2000,800,400,"ədəd",{"$f":"'Mebel siyahısı (Otaqlar üzrə)'!L5","v":16}]
[null,null,"Geyim dolabı (1)",null,"Korpus və qapaqlar 18 mm LDSP; arxalıq 3 mm DVP; tutacaqlar metal; tənzimlənə bilən ayaqlar; asılqanlar üçün mexanizm",2000,600,400,"ədəd",{"$f":"'Mebel siyahısı (Otaqlar üzrə)'!L6","v":11}]
[null,null,"Geyim dolabı (2)",null,"Korpus və qapaqlar 18 mm LDSP; arxalıq 3 mm DVP; tutacaqlar metal; tənzimlənə bilən ayaqlar; asılqan xrom boru",2000,400,600,"ədəd",{"$f":"'Mebel siyahısı (Otaqlar üzrə)'!L38","v":113}]
[null,null,"İclas masası (1)",null,"Masa üstü və ayaqlar 18 mm LDSP",750,1600,800,"ədəd",{"$f":"'Mebel siyahısı (Otaqlar üzrə)'!L21","v":3}]
["II mərtəbə",2,"İclas masası (2)",null,"Masa üstü və ayaqlar 18 mm LDSP",750,3500,1400,"ədəd",{"$f":"'Mebel siyahısı (Otaqlar üzrə)'!L129","v":1}]
[null,null,"İki mərtəbəli çarpayı",null,"Boyalı metal karkas",null,null,null,"ədəd",{"$f":"'Mebel siyahısı (Otaqlar üzrə)'!L131","v":26}]
[null,null,"İşçi kreslosu (ofis)",null,"Rollerli və arxalığı torlu kreslo",null,null,null,"ədəd",{"$f":"'Mebel siyahısı (Otaqlar üzrə)'!L9","v":15}]
[null,null,"İşçi masası (ofis)",null,"Masa üstü və ayaqlar 18 mm LDSP",750,1600,700,"ədəd",{"$f":"'Mebel siyahısı (Otaqlar üzrə)'!L11","v":14}]
[null,null,"Kreslo",null,"Parça örtüklü; metal ayaqlar",null,1000,null,"ədəd",{"$f":"'Mebel siyahısı (Otaqlar üzrə)'!L127","v":4}]
[null,null,"Lampa",null,"Metal altlıqlı və çıxarıla bilən abajurlu masa üstü lampa",null,null,null,"ədəd",{"$f":"'Mebel siyahısı (Otaqlar üzrə)'!L45","v":76}]
[null,null,"Masa (yeməkxana üçün)",null,"Masa üstü boyalı MDF; ağac ayaqlar",null,null,null,"ədəd",{"$f":"'Mebel siyahısı (Otaqlar üzrə)'!L116","v":18}]
["I mərtəbə",7,"Müayinə masası",null,"Dəri örtüklü və metal ayaqlı masa",null,null,null,"ədəd",{"$f":"'Mebel siyahısı (Otaqlar üzrə)'!L32","v":1}]
["I mərtəbə",7,"Müayinə üçün arakəsmə",null,"Metal karkas üzərində parça ",null,null,null,"ədəd",{"$f":"'Mebel siyahısı (Otaqlar üzrə)'!L37","v":1}]
[null,null,"Müdir kreslosu (ofis)",null,"Rollerli, başlıqlı və arxalığı setkalı kreslo",null,null,null,"ədəd",{"$f":"'Mebel siyahısı (Otaqlar üzrə)'!L16","v":7}]
[null,null,"Müdir masası (ofis)",null,"Masa üstü və ayaqlar 18 mm LDSP",750,1800,800,"ədəd",{"$f":"'Mebel siyahısı (Otaqlar üzrə)'!L17","v":7}]
[null,null,"Müdir masası üçün əlavə dolab (ofis)",null,"Korpus, qapaqlar və arxalıq 18 mm LDSP; tutacaqlar metal; teleskopik raylı 2 ədəd siyirmə rəf; kilid 2 ədəd",750,900,450,"ədəd",{"$f":"'Mebel siyahısı (Otaqlar üzrə)'!L18","v":7}]
[null,null,"Qəhvə masası (1)",null,"Masa üstü 18 mm LDSP, ayaqlar boyalı metal",320,450,450,"ədəd",{"$f":"'Mebel siyahısı (Otaqlar üzrə)'!L24","v":4}]
[null,null,"Qəhvə masası (2)",null,"Masa üstü 18 mm LDSP, ayaqlar boyalı metal",400,800,500,"ədəd",{"$f":"'Mebel siyahısı (Otaqlar üzrə)'!L20","v":3}]
[null,null,"Qəhvə masası (3)",null,"Masa üstü 18 mm LDSP, ayaqlar boyalı metal",400,1000,600,"ədəd",{"$f":"'Mebel siyahısı (Otaqlar üzrə)'!L8","v":7}]
["I mərtəbə",1,"Qeydiyyat masası",null,"Korpus və arxalıq 18 mm LDSP; LED işıqlandırma",1200,null,null,"ədəd",{"$f":"'Mebel siyahısı (Otaqlar üzrə)'!J3","v":1}]
[null,null,"Skamya",null,"Dəri örtüklü oturacaq, ayaqlar boyalı metal",450,1400,500,"ədəd",{"$f":"'Mebel siyahısı (Otaqlar üzrə)'!L120","v":2}]
[null,null,"Soyunma-geyinmə modulu",null,"Korpus 18 mm LDSP; dəri örtüklü oturacaq; xrom boru asılqan 1 ədəd; qirmaq tipli asılqan 2 ədəd",2200,600,600,"ədəd",{"$f":"'Mebel siyahısı (Otaqlar üzrə)'!L139","v":93}]
[null,null,"Stul (konfrans zalı üçün)",null,"Parça örtüklü; metal ayaqlar; açılıb-bağlanan kiçik masalı stul",null,null,null,"ədəd",{"$f":"'Mebel siyahısı (Otaqlar üzrə)'!L115","v":64}]
[null,null,"Stul (ofis)",null,"Parça örtüklü; metal ayaqlar",null,null,null,"ədəd",{"$f":"'Mebel siyahısı (Otaqlar üzrə)'!L15","v":45}]
[null,null,"Stul (qonaqlar üçün)",null,"Parça örtüklü; metal ayaqlar",null,null,null,"ədəd",{"$f":"'Mebel siyahısı (Otaqlar üzrə)'!L23","v":8}]
[null,null,"Stul (yataq otağı)",null,"Parça örtüklü; ağac ayaqlar",null,null,null,"ədəd",{"$f":"'Mebel siyahısı (Otaqlar üzrə)'!L41","v":24}]
[null,null,"Stul (yeməkxana üçün)",null,"Parça örtüklü; ağac ayaqlar",null,null,null,"ədəd",{"$f":"'Mebel siyahısı (Otaqlar üzrə)'!L117","v":72}]
[null,null,"Tibbi ləvazimatlar üçün dolab",null,"Metal dolab; şüşə qapılı və rəfli",null,null,null,"ədəd",{"$f":"'Mebel siyahısı (Otaqlar üzrə)'!L33","v":2}]
[null,null,"Tumba (1)",null,"Korpus və arxalıq 18 mm LDSP; 3 ədəd teleskopik raylı siyirmə rəf; tutacaqlar metal; kilid 1 ədəd; 4 ədəd roller",600,500,500,"ədəd",{"$f":"'Mebel siyahısı (Otaqlar üzrə)'!L4","v":13}]
[null,null,"Tumba (2)",null,"Korpus və arxalıq 18 mm LDSP; metal ayaqlar; 2 ədəd teleskopik raylı siyirmə rəf; tutacaqlar metal",500,500,500,"ədəd",{"$f":"'Mebel siyahısı (Otaqlar üzrə)'!L44","v":76}]
["II mərtəbə",25,"TV altı tumba",null,"Korpus, qapaqlar və arxalıq 18 mm LDSP;  tutacaqlar metal",750,1200,600,"ədəd",{"$f":"'Mebel siyahısı (Otaqlar üzrə)'!L281","v":1}]
[null,null,"Yazı masası (yataq otağı)",null,"Masa üstü və ayaqlar 18 mm LDSP",750,1200,600,"ədəd",{"$f":"'Mebel siyahısı (Otaqlar üzrə)'!L40","v":24}]
["Qeyd 1: Təklif olunan mallara zəmanət müddəti göstərilməlidir."]
["Qeyd 2: Çatdırılma və quraşdırılma xərcləri qiymətə daxildir."]